[Event "IV Jugando con las Estrellas 2019"]
[Site "Santa Cruz de la Palma"]
[Date "2019.08.15"]
[Round "9.9"]
[White "Bressac, Stephane"]
[Black "Capote Robayna, Nathaniel"]
[Result "0-1"]
[ECO "B30"]
[WhiteElo "2345"]
[BlackElo "2200"]
[Annotator "RC"]
[PlyCount "86"]
[EventDate "2019.08.09"]
[EventType "swiss"]
[EventCountry "ESP"]
[SourceTitle "playchess.com"]
[Source "ChessBase"]
[SourceQuality "1"]
[TimeControl "5400+30"]

1. e4 {[%emt 0:00:00]} c5 {[%emt 0:00:00]} 2. Nf3 {[%emt 0:00:00]} Nc6 {[%emt 0:00:00]} 3. Bb5 {[%emt 0:00:00]} e6 {[%emt 0:00:00]} 4. O-O {[%emt 0:00:37]} Nge7 {[%emt 0:00:08]} 5. d4 {[%emt 0:00:05]} cxd4 {[%emt 0:00:29]} 6. Nxd4 {[%emt 0:00:08]} Ng6 {[%emt 0:01:07]} 7. Be3 {[%emt 0:00:07]} Be7 {[%emt 0:00:06]} 8. Be2 {[%emt 0:00:14]} O-O {[%emt 0:00:09]} 9. c4 {[%emt 0:00:09]} b6 {[%emt 0:00:30]} 10. Nc3 {[%emt 0:00:08]} Bb7 {[%emt 0:00:06]} 11. Nb3 {[%emt 0:00:19]} f5 {[%emt 0:04:48]} 12. exf5 {[%emt 0:00:09]} Rxf5 {[%emt 0:00:07]} 13. f4 {[%emt 0:00:03]} Rf8 {[%emt 0:05:54]} 14. g3 {[%emt 0:00:18]} Nb4 {[%emt 0:10:24]} 15. Qd2 {[%emt 0:00:16]} Qc8 {[%emt 0:01:00]} 16. Rad1 {[%emt 0:03:31]} Rd8 {[%emt 0:02:11]} 17. a3 {[%emt 0:02:06]} Na6 {[%emt 0:03:44]} 18. Nd4 {[%emt 0:04:06]} Bf6 {[%emt 0:15:57]} 19. b4 {[%emt 0:08:55]} Ne7 {[%emt 0:06:05]} 20. Rc1 {[%emt 0:03:15]} Nc7 {[%emt 0:13:59]} 21. Bg4 {[%emt 0:02:05]} Ne8 {[%emt 0:02:57]} 22. Qe2 {[%emt 0:07:57]} Nd6 {[%emt 0:02:55]} 23. Ncb5 {[%emt 0:15:05]} Nxb5 24. Nxb5 Nf5 {[%emt 0:04:34]} 25. Bxf5 {[%emt 0:15:10]} exf5 {[%emt 0:00:46]} 26. Nd6 {[%emt 0:00:05]} Qc6 {[%emt 0:00:08]} 27. Nxb7 {[%emt 0:00:06]} Qxb7 {[%emt 0:00:06]} 28. Qd3 {[%emt 0:00:04]} d5 {[%emt 0:05:37]} 29. Qxf5 {[%emt 0:03:36]} d4 {[%emt 0:03:02]} 30. Bf2 {[%emt 0:00:51]} Qf3 {[%emt 0:00:08]} 31. c5 {[%emt 0:02:18]} bxc5 {[%emt 0:00:39]} 32. bxc5 {[%emt 0:00:02]} Rac8 {[%emt 0:00:53]} 33. c6 {[%emt 0:02:29]} Rxc6 {[%emt 0:02:26]} 34. Rb1 {[%emt 0:03:49]} Qxa3 {[%emt 0:04:31]} 35. Rb7 {[%emt 0:00:01]} Qd6 {[%emt 0:00:18]} 36. Re1 {[%emt 0:04:53]} d3 {[%emt 0:02:31]} 37. Qh5 {[%emt 0:00:02]} Rcc8 {[%emt 0:02:18]} 38. Qf7+ {[%emt 0:11:05]} Kh8 {[%emt 0:00:08]} 39. Re6 {[%emt 0:00:01]} d2 {[%emt 0:04:23]} 40. Rxd6 {[%emt 0:00:27]} Rxd6 {[%emt 0:00:08]} 41. Rb1 {[%emt 0:00:11]} Rc1+ {[%emt 0:00:47]} 42. Kg2 {[%emt 0:00:04]} Rd8 {[%emt 0:00:21]} 43. Qd7 {[%emt 0:03:43]} Rxd7 {[%emt 0:01:08]} 0-1